Workbook

Sheet Sheet1
A1: 蒙山县2025年面向社会公开考试招聘事业（非中小学教师岗位）单位人员考试总成绩
A2: 序号 | B2: 姓名 | C2: 招考单位名称 | D2: 报考岗位 | E2: 报考岗位代码 | F2: 招考人数 | G2: 职业能力倾向测验分数 | H2: 综合应用能力分数 | I2: 笔试分数 （300分制） | J2: 换算成百分制后的笔试总成绩*50% | K2: 面试成绩 | L2: 面试成绩*50% | M2: 考试 总成绩 | N2: 考试总成绩 岗位排名
A3: 1 | B3: 韦天鹏 | C3: 蒙山县茶山水库管理站 | D3: 专业技术人员 | E3: 1450400498 | F3: 1 | G3: 81 | H3: 100.5 | I3: 181.5 | J3: =I3/3/2 -> 30.25 | K3: 79.56 | L3: =K3/2 -> 39.78 | M3: =J3+L3 -> 70.03 | N3: 1
A4: 2 | B4: 罗淦 | G4: 72 | H4: 94.5 | I4: 166.5 | J4: 27.75 | K4: 83.42 | L4: 41.71 | M4: 69.46 | N4: 2
A5: 3 | B5: 何业飞 | G5: 58.5 | H5: 94.5 | I5: 153 | J5: 25.50 | K5: 83.74 | L5: 41.87 | M5: 67.37 | N5: 3
A6: 4 | B6: 刘火娇 | C6: 蒙山县民兵武器装备仓库 | D6: 专业技术人员 | E6: 1450400499 | F6: 1 | G6: 89.5 | H6: 103.5 | I6: 193 | J6: 32.17 | K6: 84.18 | L6: 42.09 | M6: 74.26 | N6: 1
A7: 5 | B7: 李木兰 | G7: 81.5 | H7: 96.5 | I7: 178 | J7: 29.67 | K7: 81.42 | L7: 40.71 | M7: 70.38 | N7: 2
A8: 6 | B8: 陈莎莎 | G8: 75.5 | H8: 83 | I8: 158.5 | J8: 26.42 | K8: 76.86 | L8: 38.43 | M8: 64.85 | N8: 3
A9: 7 | B9: 陈思颖 | C9: 蒙山县互联网舆情中心 | D9: 管理人员 | E9: 1450400501 | F9: 1 | G9: 74.5 | H9: 110 | I9: 184.5 | J9: 30.75 | K9: 85.58 | L9: 42.79 | M9: 73.54 | N9: 1
A10: 8 | B10: 简高莹 | G10: 74.5 | H10: 95 | I10: 169.5 | J10: 28.25 | K10: 85.34 | L10: 42.67 | M10: 70.92 | N10: 2
A11: 9 | B11: 潘梅 | G11: 81 | H11: 87 | I11: 168 | J11: 28.00 | K11: 80.68 | L11: 40.34 | M11: 68.34 | N11: 3
A12: 10 | B12: 梁晓霞 | D12: 专业技术人员 | E12: 1450400502 | F12: 1 | G12: 81 | H12: 102.5 | I12: 183.5 | J12: 30.58 | K12: 80.38 | L12: 40.19 | M12: 70.77 | N12: 1
A13: 11 | B13: 李东玲 | G13: 91 | H13: 101 | I13: 192 | J13: 32.00 | K13: 76.56 | L13: 38.28 | M13: 70.28 | N13: 2
A14: 12 | B14: 黄烨 | G14: 68 | H14: 97 | I14: 165 | J14: 27.50 | K14: 72.12 | L14: 36.06 | M14: 63.56 | N14: 3
A15: 13 | B15: 廖容 | C15: 蒙山县新时代文明实践服务中心 | D15: 专业技术人员 | E15: 1450400503 | F15: 1 | G15: 79.5 | H15: 99 | I15: 178.5 | J15: 29.75 | K15: 79.58 | L15: 39.79 | M15: 69.54 | N15: 1
A16: 14 | B16: 王建平 | G16: 96.5 | H16: 96.5 | I16: 193 | J16: 32.17 | K16: 74.36 | L16: 37.18 | M16: 69.35 | N16: 2
A17: 15 | B17: 胡桐侨 | G17: 85 | H17: 97 | I17: 182 | J17: 30.33 | K17: 70.90 | L17: 35.45 | M17: 65.78 | N17: 3
A18: 16 | B18: 黄军焕 | C18: 蒙山县社会工作综合服务中心 | D18: 专业技术人员一 | E18: 1450400504 | F18: 1 | G18: 87 | H18: 92 | I18: 179 | J18: 29.83 | K18: 75.94 | L18: 37.97 | M18: 67.80 | N18: 1
A19: 17 | B19: 李梦妍 | G19: 69.5 | H19: 67 | I19: 136.5 | J19: 22.75 | K19: 70.76 | L19: 35.38 | M19: 58.13 | N19: 2
A20: 18 | B20: 梁振平 | G20: 87.5 | H20: 70 | I20: 157.5 | J20: 26.25 | K20: 缺考 | L20: 0.00 | M20: 26.25 | N20: 3
A21: 19 | B21: 梁倩洁 | D21: 专业技术人员二 | E21: 1450400505 | F21: 1 | G21: 79 | H21: 77.5 | I21: 156.5 | J21: 26.08 | K21: 82.92 | L21: =K21/2 -> 41.46 | M21: 67.54 | N21: 1
A22: 20 | B22: 李春凤 | D22: 专业技术人员二 | G22: 70 | H22: 71 | I22: 141 | J22: 23.50 | K22: 79.76 | L22: =K22/2 -> 39.88 | M22: 63.38 | N22: 2
A23: 21 | B23: 覃雪萍 | D23: 专业技术人员二 | G23: 56 | H23: 75 | I23: 131 | J23: 21.83 | K23: 75.28 | L23: =K23/2 -> 37.64 | M23: 59.47 | N23: 3
A24: 22 | B24: 陈燕兰 | D24: 管理人员 | E24: 1450400506 | F24: 1 | G24: 82 | H24: 94 | I24: 176 | J24: 29.33 | K24: 77.66 | L24: =K24/2 -> 38.83 | M24: 68.16 | N24: 1
A25: 23 | B25: 杨庆归 | D25: 管理人员 | G25: 95.5 | H25: 74 | I25: 169.5 | J25: 28.25 | K25: 缺考 | L25: 0.00 | M25: 28.25 | N25: 2
A26: 24 | B26: 欧尚娟 | C26: 蒙山县督查和绩效评估中心 | D26: 专业技术人员 | E26: 1450400507 | F26: 1 | G26: 95.5 | H26: 107 | I26: 202.5 | J26: 33.75 | K26: 82.70 | L26: =K26/2 -> 41.35 | M26: 75.10 | N26: 1
A27: 25 | B27: 李罗茜 | D27: 专业技术人员 | E27: 1450400507 | G27: 90.5 | H27: 102 | I27: 192.5 | J27: 32.08 | K27: 79.90 | L27: =K27/2 -> 39.95 | M27: 72.03 | N27: 2
A28: 26 | B28: 农異章 | D28: 专业技术人员 | E28: 1450400507 | G28: 102.5 | H28: 105 | I28: 207.5 | J28: 34.58 | K28: 61.80 | L28: =K28/2 -> 30.90 | M28: 65.48 | N28: 3
A29: 27 | B29: 官冬莲 | C29: 蒙山县工业促进和中小企业服务中心 | D29: 管理人员一 | E29: 1450400508 | F29: 1 | G29: 90.5 | H29: 88.5 | I29: 179 | J29: 29.83 | K29: 79.80 | L29: =K29/2 -> 39.90 | M29: 69.73 | N29: 1
A30: 28 | B30: 覃祚伟 | D30: 管理人员一 | E30: 1450400508 | G30: 78 | H30: 72 | I30: 150 | J30: 25.00 | K30: 83.08 | L30: 41.54 | M30: 66.54 | N30: 2
A31: 29 | B31: 王穗玲 | D31: 管理人员一 | E31: 1450400508 | G31: 85.5 | H31: 82 | I31: 167.5 | J31: 27.92 | K31: 64.96 | L31: 32.48 | M31: 60.40 | N31: 3
A32: 30 | B32: 肖楷耀 | D32: 管理人员二 | E32: 1450400509 | F32: 1 | G32: 90 | H32: 102 | I32: 192 | J32: 32.00 | K32: 81.28 | L32: 40.64 | M32: 72.64 | N32: 1
A33: 31 | B33: 罗丽利 | D33: 管理人员二 | E33: 1450400509 | G33: 89.5 | H33: 95.5 | I33: 185 | J33: 30.83 | K33: 77.90 | L33: 38.95 | M33: 69.78 | N33: 2
A34: 32 | B34: 莫斯洁 | D34: 管理人员二 | E34: 1450400509 | G34: 75.5 | H34: 102 | I34: 177.5 | J34: 29.58 | K34: 77.34 | L34: 38.67 | M34: 68.25 | N34: 3
A35: 33 | B35: 黄锐 | D35: 专业技术人员 | E35: 1450400510 | F35: 1 | G35: 106.5 | H35: 97 | I35: 203.5 | J35: 33.92 | K35: 82.44 | L35: 41.22 | M35: 75.14 | N35: 1
A36: 34 | B36: 农贵龙 | D36: 专业技术人员 | E36: 1450400510 | G36: 72 | H36: 101 | I36: 173 | J36: 28.83 | K36: 79.96 | L36: 39.98 | M36: 68.81 | N36: 2
A37: 35 | B37: 黎琦琪 | D37: 专业技术人员 | E37: 1450400510 | G37: 91 | H37: 85.5 | I37: 176.5 | J37: 29.42 | K37: 73.90 | L37: 36.95 | M37: 66.37 | N37: 3
A38: 36 | B38: 朱学滔 | C38: 蒙山县禁毒管理中心 | D38: 管理人员 | E38: 1450400511 | F38: 1 | G38: 93.5 | H38: 95.5 | I38: 189 | J38: 31.50 | K38: 79.18 | L38: 39.59 | M38: 71.09 | N38: 1
A39: 37 | B39: 徐敏杰 | D39: 管理人员 | G39: 115 | H39: 76 | I39: 191 | J39: 31.83 | K39: 74.80 | L39: 37.40 | M39: 69.23 | N39: 2
A40: 38 | B40: 黄健明 | D40: 管理人员 | G40: 98.5 | H40: 83 | I40: 181.5 | J40: 30.25 | K40: 70.34 | L40: 35.17 | M40: 65.42 | N40: 3
A41: 39 | B41: 韦沛良 | C41: 蒙山县财政预算绩效管理中心 | D41: 管理人员一 | E41: 1450400512 | F41: 1 | G41: 77 | H41: 94 | I41: 171 | J41: 28.50 | K41: 75.04 | L41: 37.52 | M41: 66.02 | N41: 1
A42: 40 | B42: 王能剑 | D42: 管理人员一 | E42: 1450400512 | G42: 77.5 | H42: 68.5 | I42: 146 | J42: 24.33 | K42: 50.88 | L42: 25.44 | M42: 49.77 | N42: 2
A43: 41 | B43: 戴汇金 | D43: 管理人员一 | E43: 1450400512 | G43: 83.5 | H43: 63.5 | I43: 147 | J43: 24.50 | K43: 30.56 | L43: 15.28 | M43: 39.78 | N43: 3
A44: 42 | B44: 谢晓华 | D44: 管理人员二 | E44: 1450400513 | F44: 1 | G44: 105.5 | H44: 114.5 | I44: 220 | J44: 36.67 | K44: 76.50 | L44: 38.25 | M44: 74.92 | N44: 1
A45: 43 | B45: 卢永炎 | D45: 管理人员二 | E45: 1450400513 | G45: 91 | H45: 108.5 | I45: 199.5 | J45: 33.25 | K45: 77.74 | L45: 38.87 | M45: 72.12 | N45: 2
A46: 44 | B46: 尤莹 | D46: 管理人员二 | E46: 1450400513 | G46: 94.5 | H46: 105 | I46: 199.5 | J46: 33.25 | K46: 76.86 | L46: 38.43 | M46: 71.68 | N46: 3
A47: 45 | B47: 卢日清 | D47: 专业技术人员一 | E47: 1450400514 | F47: 1 | G47: 99.5 | H47: 96.5 | I47: 196 | J47: 32.67 | K47: 75.00 | L47: 37.50 | M47: 70.17 | N47: 1
A48: 46 | B48: 陈芳 | D48: 专业技术人员一 | E48: 1450400514 | G48: 87 | H48: 98.5 | I48: 185.5 | J48: 30.92 | K48: 72.92 | L48: 36.46 | M48: 67.38 | N48: 2
A49: 47 | B49: 黄雨晴 | D49: 专业技术人员一 | E49: 1450400514 | G49: 89 | H49: 96.5 | I49: 185.5 | J49: 30.92 | K49: 缺考 | L49: 0.00 | M49: 30.92 | N49: 3
A50: 48 | B50: 何径光 | D50: 专业技术人员二 | E50: 1450400515 | F50: 1 | G50: 88 | H50: 71 | I50: 159 | J50: 26.50 | K50: 79.84 | L50: =K50/2 -> 39.92 | M50: 66.42 | N50: 1
A51: 49 | B51: 陆虹宇 | D51: 专业技术人员二 | E51: 1450400515 | G51: 65.5 | H51: 88.5 | I51: 154 | J51: 25.67 | K51: 80.16 | L51: 40.08 | M51: 65.75 | N51: 2
A52: 50 | B52: 蒋江维 | D52: 专业技术人员二 | E52: 1450400515 | G52: 71.5 | H52: 76.5 | I52: 148 | J52: 24.67 | K52: 75.70 | L52: 37.85 | M52: 62.52 | N52: 3
A53: 51 | B53: 雷振宇 | D53: 专业技术人员三 | E53: 1450400516 | F53: 1 | G53: 108 | H53: 90 | I53: 198 | J53: 33.00 | K53: 81.36 | L53: 40.68 | M53: 73.68 | N53: 1
A54: 52 | B54: 卢翠玲 | D54: 专业技术人员三 | E54: 1450400516 | G54: 76.5 | H54: 115 | I54: 191.5 | J54: 31.92 | K54: 81.46 | L54: 40.73 | M54: 72.65 | N54: 2
A55: 53 | B55: 钟昀 | D55: 专业技术人员三 | E55: 1450400516 | G55: 85.5 | H55: 102 | I55: 187.5 | J55: 31.25 | K55: 76.74 | L55: 38.37 | M55: 69.62 | N55: 3
A56: 54 | B56: 韦懿容 | D56: 专业技术人员四 | E56: 1450400517 | F56: 2 | G56: 78 | H56: 94 | I56: 172 | J56: 28.67 | K56: 83.24 | L56: 41.62 | M56: 70.29 | N56: 1
A57: 55 | B57: 徐嘉 | G57: 77.5 | H57: 86 | I57: 163.5 | J57: 27.25 | K57: 84.86 | L57: 42.43 | M57: 69.68 | N57: 2
A58: 56 | B58: 陆小燕 | G58: 63.5 | H58: 78.5 | I58: 142 | J58: 23.67 | K58: 86.66 | L58: 43.33 | M58: 67.00 | N58: 3
A59: 57 | B59: 何念萧 | G59: 71 | H59: 86.5 | I59: 157.5 | J59: 26.25 | K59: 78.52 | L59: 39.26 | M59: 65.51 | N59: 4
A60: 58 | B60: 韦春梅 | G60: 58 | H60: 84 | I60: 142 | J60: 23.67 | K60: 82.00 | L60: 41.00 | M60: 64.67 | N60: 5
A61: 59 | B61: 欧小英 | G61: 53 | H61: 84.5 | I61: 137.5 | J61: 22.92 | K61: 62.80 | L61: 31.40 | M61: 54.32 | N61: 6
A62: 60 | B62: 李达 | D62: 专业技术人员五 | E62: 1450400518 | F62: 1 | G62: 78.5 | H62: 84.5 | I62: 163 | J62: 27.17 | K62: 80.34 | L62: 40.17 | M62: 67.34 | N62: 1
A63: 61 | B63: 黄慧敏 | D63: 专业技术人员五 | G63: 76 | H63: 100 | I63: 176 | J63: 29.33 | K63: 67.30 | L63: 33.65 | M63: 62.98 | N63: 2
A64: 62 | B64: 黄琨富 | D64: 专业技术人员五 | G64: 91 | H64: 93.5 | I64: 184.5 | J64: 30.75 | K64: 0.00 | L64: 0.00 | M64: 30.75 | N64: 3
A65: 63 | B65: 周翔 | D65: 专业技术人员六 | E65: 1450400519 | F65: 1 | G65: 73 | H65: 94.5 | I65: 167.5 | J65: 27.92 | K65: 80.98 | L65: 40.49 | M65: 68.41 | N65: 1
A66: 64 | B66: 黄恒才 | D66: 专业技术人员六 | E66: 1450400519 | G66: 60.5 | H66: 71.5 | I66: 132 | J66: 22.00 | K66: 80.86 | L66: 40.43 | M66: 62.43 | N66: 2
A67: 65 | B67: 梁雪媚 | D67: 专业技术人员六 | E67: 1450400519 | G67: 56.5 | H67: 65.5 | I67: 122 | J67: =I67/3/2 -> 20.33 | K67: 77.78 | L67: 38.89 | M67: =J67+L67 -> 59.22 | N67: 3
A68: 66 | B68: 尹曾可 | C68: 蒙山县国有资产管理中心 | D68: 专业技术人员一 | E68: 1450400520 | F68: 1 | G68: 64.5 | H68: 75.5 | I68: 140 | J68: 23.33 | K68: 84.30 | L68: 42.15 | M68: 65.48 | N68: 1
A69: 67 | B69: 伍贤军 | D69: 专业技术人员一 | E69: 1450400520 | G69: 71.5 | H69: 66.5 | I69: 138 | J69: 23.00 | K69: 84.04 | L69: 42.02 | M69: 65.02 | N69: 2
A70: 68 | B70: 谢毅晋 | D70: 专业技术人员一 | E70: 1450400520 | G70: 61.5 | H70: 76 | I70: 137.5 | J70: 22.92 | K70: 77.04 | L70: 38.52 | M70: 61.44 | N70: 3
A71: 69 | B71: 莫忠婷 | D71: 专业技术人员二 | E71: 1450400521 | F71: 1 | G71: 96 | H71: 89.5 | I71: 185.5 | J71: 30.92 | K71: 84.02 | L71: 42.01 | M71: 72.93 | N71: 1
A72: 70 | B72: 邱祖怡 | D72: 专业技术人员二 | E72: 1450400521 | G72: 64 | H72: 96 | I72: 160 | J72: 26.67 | K72: 82.40 | L72: 41.20 | M72: 67.87 | N72: 2
A73: 71 | B73: 吴宇杭 | D73: 专业技术人员二 | E73: 1450400521 | G73: 72.5 | H73: 84 | I73: 156.5 | J73: 26.08 | K73: 75.92 | L73: 37.96 | M73: 64.04 | N73: 3
A74: 72 | B74: 罗业凤 | C74: 蒙山县征地搬迁安置服务中心 | D74: 专业技术人员一 | E74: 1450400522 | F74: 1 | G74: 75 | H74: 84 | I74: 159 | J74: 26.50 | K74: 77.96 | L74: 38.98 | M74: 65.48 | N74: 1
A75: 73 | B75: 钟兆锋 | D75: 专业技术人员一 | E75: 1450400522 | G75: 61.5 | H75: 81.5 | I75: 143 | J75: 23.83 | K75: 74.12 | L75: 37.06 | M75: 60.89 | N75: 2
A76: 74 | B76: 陈保全 | D76: 专业技术人员一 | E76: 1450400522 | G76: 46 | H76: 79 | I76: 125 | J76: 20.83 | K76: 66.74 | L76: 33.37 | M76: 54.20 | N76: 3
A77: 75 | B77: 周笔锋 | D77: 专业技术人员二 | E77: 1450400523 | F77: 1 | G77: 87.5 | H77: 89 | I77: 176.5 | J77: 29.42 | K77: 83.34 | L77: 41.67 | M77: 71.09 | N77: 1
A78: 76 | B78: 陆庆俐 | D78: 专业技术人员二 | E78: 1450400523 | G78: 77 | H78: 76 | I78: 153 | J78: 25.50 | K78: 75.44 | L78: 37.72 | M78: 63.22 | N78: 2
A79: 77 | B79: 丁宏伟 | D79: 专业技术人员二 | E79: 1450400523 | G79: 82.5 | H79: 59.5 | I79: 142 | J79: 23.67 | K79: 71.78 | L79: 35.89 | M79: 59.56 | N79: 3
A80: 78 | B80: 曾柏棕 | C80: 蒙山县土地储备中心 | D80: 专业技术人员一 | E80: 1450400525 | F80: 1 | G80: 72.5 | H80: 79 | I80: 151.5 | J80: 25.25 | K80: 76.46 | L80: 38.23 | M80: 63.48 | N80: 1
A81: 79 | B81: 吴映霖 | D81: 专业技术人员一 | E81: 1450400525 | G81: 63.5 | H81: 83.5 | I81: 147 | J81: 24.50 | K81: 76.00 | L81: 38.00 | M81: 62.50 | N81: 2
A82: 80 | B82: 陆昕瑶 | D82: 专业技术人员一 | E82: 1450400525 | G82: 74 | H82: 79.5 | I82: 153.5 | J82: 25.58 | K82: 67.04 | L82: 33.52 | M82: 59.10 | N82: 3
A83: 81 | B83: 黄镜玮 | D83: 专业技术人员二 | E83: 1450400526 | F83: 1 | G83: 65 | H83: 72.5 | I83: 137.5 | J83: 22.92 | K83: 83.36 | L83: 41.68 | M83: 64.60 | N83: 1
A84: 82 | B84: 范杰 | D84: 专业技术人员二 | E84: 1450400526 | G84: 76.5 | H84: 65 | I84: 141.5 | J84: 23.58 | K84: 76.10 | L84: 38.05 | M84: 61.63 | N84: 2
A85: 83 | B85: 冯仁康 | C85: 蒙山县住房保障和房产管理中心 | D85: 专业技术人员 | E85: 1450400527 | F85: 1 | G85: 69.5 | H85: 91.5 | I85: 161 | J85: 26.83 | K85: 83.60 | L85: 41.80 | M85: 68.63 | N85: 1
A86: 84 | B86: 陆高峰 | D86: 专业技术人员 | G86: 65 | H86: 75.5 | I86: 140.5 | J86: 23.42 | K86: 78.50 | L86: 39.25 | M86: 62.67 | N86: 2
A87: 85 | B87: 梁梦婵 | D87: 专业技术人员 | G87: 74 | H87: 92 | I87: 166 | J87: 27.67 | K87: 66.10 | L87: 33.05 | M87: 60.72 | N87: 3
A88: 86 | B88: 林晨 | C88: 蒙山县交通运输综合行政执法大队 | D88: 专业技术人员一 | E88: 1450400528 | F88: 1 | G88: 65 | H88: 81.5 | I88: 146.5 | J88: 24.42 | K88: 81.20 | L88: 40.60 | M88: 65.02 | N88: 1
A89: 87 | B89: 蒋家燕 | D89: 专业技术人员一 | E89: 1450400528 | G89: 68.5 | H89: 73.5 | I89: 142 | J89: 23.67 | K89: 78.14 | L89: 39.07 | M89: 62.74 | N89: 2
A90: 88 | B90: 莫金林 | D90: 专业技术人员一 | E90: 1450400528 | G90: 73.5 | H90: 49 | I90: 122.5 | J90: 20.42 | K90: 66.14 | L90: 33.07 | M90: 53.49 | N90: 3
A91: 89 | B91: 李泳燕 | D91: 专业技术人员二 | E91: 1450400529 | F91: 1 | G91: 92.5 | H91: 103 | I91: 195.5 | J91: 32.58 | K91: 84.40 | L91: 42.20 | M91: 74.78 | N91: 1
A92: 90 | B92: 彭悦 | D92: 专业技术人员二 | G92: 71 | H92: 100 | I92: 171 | J92: 28.50 | K92: 84.28 | L92: 42.14 | M92: 70.64 | N92: 2
A93: 91 | B93: 李雪萍 | D93: 专业技术人员二 | G93: 68 | H93: 93 | I93: 161 | J93: 26.83 | K93: 75.84 | L93: 37.92 | M93: 64.75 | N93: 3
A94: 92 | B94: 李文栋 | D94: 专业技术人员三 | E94: 1450400530 | F94: 1 | G94: 67.5 | H94: 98 | I94: 165.5 | J94: 27.58 | K94: 83.22 | L94: 41.61 | M94: 69.19 | N94: 1
A95: 93 | B95: 曾司司 | D95: 专业技术人员三 | G95: 77.5 | H95: 83.5 | I95: 161 | J95: 26.83 | K95: 81.72 | L95: 40.86 | M95: 67.69 | N95: 2
A96: 94 | B96: 唐红军 | D96: 专业技术人员三 | G96: 72.5 | H96: 82.5 | I96: 155 | J96: 25.83 | K96: 缺考 | L96: 0.00 | M96: 25.83 | N96: 3
A97: 95 | B97: 黄乐源 | D97: 专业技术人员四 | E97: 1450400531 | F97: 1 | G97: 64 | H97: 86 | I97: 150 | J97: 25.00 | K97: 85.40 | L97: =K97/2 -> 42.70 | M97: 67.70 | N97: 1
A98: 96 | B98: 刘国庆 | G98: 54 | H98: 55.5 | I98: 109.5 | J98: 18.25 | K98: 66.64 | L98: 33.32 | M98: 51.57 | N98: 2
A99: 97 | B99: 黄博羿 | D99: 专业技术人员五 | E99: 1450400532 | F99: 2 | G99: 66.5 | H99: 58.5 | I99: 125 | J99: 20.83 | K99: 78.90 | L99: 39.45 | M99: 60.28 | N99: 1
A100: 98 | B100: 李筱样 | G100: 60.5 | H100: 68.5 | I100: 129 | J100: 21.50 | K100: 75.48 | L100: 37.74 | M100: 59.24 | N100: 2
A101: 99 | B101: 陆韬 | G101: 73 | H101: 48.5 | I101: 121.5 | J101: 20.25 | K101: 77.88 | L101: 38.94 | M101: 59.19 | N101: 3
A102: 100 | B102: 陈俞州 | G102: 47 | H102: 47 | I102: 94 | J102: 15.67 | K102: 78.78 | L102: 39.39 | M102: 55.06 | N102: 4
A103: 101 | B103: 蒙坪 | D103: 专业技术人员六 | E103: 1450400533 | F103: 2 | G103: 100 | H103: 121 | I103: 221 | J103: 36.83 | K103: 79.22 | L103: 39.61 | M103: 76.44 | N103: 1
A104: 102 | B104: 黄椿榕 | D104: 专业技术人员六 | G104: 90 | H104: 108.5 | I104: 198.5 | J104: 33.08 | K104: 80.16 | L104: 40.08 | M104: 73.16 | N104: 2
A105: 103 | B105: 黄金铃 | D105: 专业技术人员六 | G105: 76.5 | H105: 95.5 | I105: 172 | J105: 28.67 | K105: 85.00 | L105: 42.50 | M105: 71.17 | N105: 3
A106: 104 | B106: 黄丽 | D106: 专业技术人员六 | G106: 88.5 | H106: 91 | I106: 179.5 | J106: 29.92 | K106: 76.50 | L106: 38.25 | M106: 68.17 | N106: 4
A107: 105 | B107: 冯秋林 | D107: 专业技术人员六 | G107: 79.5 | H107: 82 | I107: 161.5 | J107: 26.92 | K107: 77.62 | L107: 38.81 | M107: 65.73 | N107: 5
A108: 106 | B108: 李彦霖 | D108: 专业技术人员六 | G108: 84.5 | H108: 83 | I108: 167.5 | J108: 27.92 | K108: 75.22 | L108: 37.61 | M108: 65.53 | N108: 6
A109: 107 | B109: 张桂桦 | D109: 专业技术人员七 | E109: 1450400534 | F109: 3 | G109: 81.5 | H109: 96.5 | I109: 178 | J109: 29.67 | K109: 83.68 | L109: 41.84 | M109: 71.51 | N109: 1
A110: 108 | B110: 李泰钊 | D110: 专业技术人员七 | G110: 97.5 | H110: 74.5 | I110: 172 | J110: 28.67 | K110: 81.00 | L110: 40.50 | M110: 69.17 | N110: 2
A111: 109 | B111: 廖金兰 | D111: 专业技术人员七 | G111: 73.5 | H111: 87 | I111: 160.5 | J111: 26.75 | K111: 84.52 | L111: 42.26 | M111: 69.01 | N111: 3
A112: 110 | B112: 黄君钰 | D112: 专业技术人员七 | G112: 79.5 | H112: 87.5 | I112: 167 | J112: 27.83 | K112: 81.34 | L112: 40.67 | M112: 68.50 | N112: 4
A113: 111 | B113: 余建海 | D113: 专业技术人员七 | G113: 93.5 | H113: 83.5 | I113: 177 | J113: 29.50 | K113: 77.78 | L113: 38.89 | M113: 68.39 | N113: 5
A114: 112 | B114: 易鸿燕 | D114: 专业技术人员七 | G114: 75.5 | H114: 83 | I114: 158.5 | J114: 26.42 | K114: 81.56 | L114: 40.78 | M114: 67.20 | N114: 6
A115: 113 | B115: 李祖洁 | D115: 专业技术人员七 | G115: 74.5 | H115: 77.5 | I115: 152 | J115: 25.33 | K115: 78.72 | L115: 39.36 | M115: 64.69 | N115: 7
A116: 114 | B116: 胡潇仁 | D116: 专业技术人员七 | G116: 81 | H116: 83.5 | I116: 164.5 | J116: 27.42 | K116: 72.22 | L116: 36.11 | M116: 63.53 | N116: 8
A117: 115 | B117: 罗家红 | D117: 专业技术人员七 | G117: 64.5 | H117: 80.5 | I117: 145 | J117: 24.17 | K117: 75.12 | L117: 37.56 | M117: 61.73 | N117: 9
A118: 116 | B118: 林松涛 | C118: 蒙山县公路水路建设养护服务中心 | D118: 专业技术人员 | E118: 1450400535 | F118: 1 | G118: 70.5 | H118: 86.5 | I118: 157 | J118: 26.17 | K118: 78.86 | L118: 39.43 | M118: 65.60 | N118: 1
A119: 117 | B119: 区桃 | D119: 专业技术人员 | G119: 69.5 | H119: 72 | I119: 141.5 | J119: 23.58 | K119: 72.68 | L119: 36.34 | M119: 59.92 | N119: 2
A120: 118 | B120: 许钊 | D120: 专业技术人员 | G120: 49 | H120: 70.5 | I120: 119.5 | J120: 19.92 | K120: 缺考 | L120: 0.00 | M120: 19.92 | N120: 3
A121: 119 | B121: 莫隆纲 | C121: 蒙山县蚕业站 | D121: 专业技术人员 | E121: 1450400536 | F121: 2 | G121: 82 | H121: 75 | I121: 157 | J121: 26.17 | K121: 84.18 | L121: =K121/2 -> 42.09 | M121: 68.26 | N121: 1
A122: 120 | B122: 李长俊 | D122: 专业技术人员 | G122: 83.5 | H122: 90 | I122: 173.5 | J122: 28.92 | K122: 75.50 | L122: =K122/2 -> 37.75 | M122: 66.67 | N122: 2
A123: 121 | B123: 莫洁琼 | D123: 专业技术人员 | G123: 72 | H123: 81 | I123: 153 | J123: 25.50 | K123: 74.10 | L123: =K123/2 -> 37.05 | M123: 62.55 | N123: 3
A124: 122 | B124: 于家欢 | D124: 专业技术人员 | G124: 61.5 | H124: 81.5 | I124: 143 | J124: 23.83 | K124: 74.30 | L124: 37.15 | M124: 60.98 | N124: 4
A125: 123 | B125: 傅炜烨 | D125: 专业技术人员 | G125: 69.5 | H125: 69 | I125: 138.5 | J125: 23.08 | K125: 75.02 | L125: 37.51 | M125: 60.59 | N125: 5
A126: 124 | B126: 苏洁冰 | D126: 专业技术人员 | G126: 71.5 | H126: 67.5 | I126: 139 | J126: 23.17 | K126: 71.22 | L126: 35.61 | M126: 58.78 | N126: 6
A127: 125 | B127: 肖阳萍 | C127: 蒙山县乡村振兴信息中心 | D127: 专业技术人员 | E127: 1450400537 | F127: 1 | G127: 74 | H127: 86 | I127: 160 | J127: 26.67 | K127: 81.56 | L127: 40.78 | M127: 67.45 | N127: 1
A128: 126 | B128: 黄孔华 | D128: 专业技术人员 | G128: 64.5 | H128: 81 | I128: 145.5 | J128: 24.25 | K128: 66.48 | L128: 33.24 | M128: 57.49 | N128: 2
A129: 127 | B129: 刘雨霖 | D129: 专业技术人员 | G129: 69 | H129: 43 | I129: 112 | J129: 18.67 | K129: 76.28 | L129: 38.14 | M129: 56.81 | N129: 3
A130: 128 | B130: 陈泓霖 | C130: 蒙山县茶产业发展服务中心 | D130: 专业技术人员一 | E130: 1450400538 | F130: 2 | G130: 60 | H130: 101 | I130: 161 | J130: 26.83 | K130: 87.26 | L130: 43.63 | M130: 70.46 | N130: 1
A131: 129 | B131: 曹玉琳 | D131: 专业技术人员一 | G131: 52.5 | H131: 100 | I131: 152.5 | J131: =I131/3/2 -> 25.42 | K131: 84.90 | L131: 42.45 | M131: =J131+L131 -> 67.87 | N131: 2
A132: 130 | B132: 农乐章 | D132: 专业技术人员一 | G132: 81 | H132: 78 | I132: 159 | J132: =I132/3/2 -> 26.50 | K132: 70.44 | L132: 35.22 | M132: =J132+L132 -> 61.72 | N132: 3
A133: 131 | B133: 向丛文 | D133: 专业技术人员一 | G133: 83 | H133: 85.5 | I133: 168.5 | J133: =I133/3/2 -> 28.08 | K133: 缺考 | L133: 0.00 | M133: =J133+L133 -> 28.08 | N133: 4
A134: 132 | B134: 肖敏 | D134: 专业技术人员一 | G134: 78 | H134: 87 | I134: 165 | J134: =I134/3/2 -> 27.50 | K134: 缺考 | L134: 0.00 | M134: =J134+L134 -> 27.50 | N134: 5
A135: 133 | B135: 王显明 | D135: 专业技术人员一 | G135: 70.5 | H135: 73 | I135: 143.5 | J135: =I135/3/2 -> 23.92 | K135: 缺考 | L135: 0.00 | M135: =J135+L135 -> 23.92 | N135: 6
A136: 134 | B136: 谢芳 | D136: 专业技术人员二 | E136: 1450400539 | F136: 1 | G136: 79 | H136: 85.5 | I136: 164.5 | J136: 27.42 | K136: 77.22 | L136: =K136/2 -> 38.61 | M136: 66.03 | N136: 1
A137: 135 | B137: 李俐 | D137: 专业技术人员二 | G137: 80 | H137: 82.5 | I137: 162.5 | J137: 27.08 | K137: 77.20 | L137: =K137/2 -> 38.60 | M137: 65.68 | N137: 2
A138: 136 | B138: 覃金连 | D138: 专业技术人员二 | G138: 72 | H138: 90.5 | I138: 162.5 | J138: 27.08 | K138: 缺考 | L138: 0.00 | M138: 27.08 | N138: 3
A139: 137 | B139: 蒙威龙 | C139: 蒙山县烈士陵园管理所 | D139: 管理人员 | E139: 1450400541 | F139: 1 | G139: 107.5 | H139: 99 | I139: 206.5 | J139: 34.42 | K139: 84.34 | L139: =K139/2 -> 42.17 | M139: 76.59 | N139: 1
A140: 138 | B140: 覃奕棋 | D140: 管理人员 | G140: 89 | H140: 90 | I140: 179 | J140: 29.83 | K140: 81.60 | L140: 40.80 | M140: 70.63 | N140: 2
A141: 139 | B141: 廖传飞 | D141: 管理人员 | G141: 88 | H141: 74 | I141: 162 | J141: 27.00 | K141: 71.88 | L141: 35.94 | M141: 62.94 | N141: 3
A142: 140 | B142: 梁炜琳 | C142: 蒙山县应急管理事务服务中心 | D142: 专业技术人员 | E142: 1450400542 | F142: 1 | G142: 90.5 | H142: 86 | I142: 176.5 | J142: 29.42 | K142: 82.28 | L142: 41.14 | M142: 70.56 | N142: 1
A143: 141 | B143: 莫雯琪 | D143: 专业技术人员 | G143: 84 | H143: 89.5 | I143: 173.5 | J143: 28.92 | K143: 75.70 | L143: 37.85 | M143: 66.77 | N143: 2
A144: 142 | B144: 冯淼昌 | D144: 专业技术人员 | G144: 70 | H144: 103.5 | I144: 173.5 | J144: 28.92 | K144: 71.20 | L144: 35.60 | M144: 64.52 | N144: 3
A145: 143 | B145: 赖绍华 | C145: 蒙山县消防救援综合服务中心 | D145: 专业技术人员一 | E145: 1450400543 | F145: 1 | G145: 81.5 | H145: 77.5 | I145: 159 | J145: 26.50 | K145: 85.00 | L145: 42.50 | M145: 69.00 | N145: 1
A146: 144 | B146: 梁媚 | D146: 专业技术人员一 | G146: 60 | H146: 66.5 | I146: 126.5 | J146: 21.08 | K146: 76.00 | L146: 38.00 | M146: 59.08 | N146: 2
A147: 145 | B147: 刘远经 | D147: 专业技术人员二 | E147: 1450400544 | F147: 1 | G147: 81.5 | H147: 75.5 | I147: 157 | J147: 26.17 | K147: 75.80 | L147: 37.90 | M147: 64.07 | N147: 1
A148: 146 | B148: 黎尚伟 | D148: 专业技术人员二 | G148: 73.5 | H148: 73.5 | I148: 147 | J148: 24.50 | K148: 71.22 | L148: 35.61 | M148: 60.11 | N148: 2
A149: 147 | B149: 邓培生 | D149: 专业技术人员二 | G149: 60.5 | H149: 57 | I149: 117.5 | J149: 19.58 | K149: 79.64 | L149: 39.82 | M149: 59.40 | N149: 3
A150: 148 | B150: 马燕 | C150: 蒙山县政府投资审计中心 | D150: 专业技术人员一 | E150: 1450400545 | F150: 1 | G150: 100 | H150: 102.5 | I150: 202.5 | J150: 33.75 | K150: 81.74 | L150: 40.87 | M150: 74.62 | N150: 1
A151: 149 | B151: 陆逍淘 | D151: 专业技术人员一 | G151: 71.5 | H151: 74.5 | I151: 146 | J151: 24.33 | K151: 82.67 | L151: 41.34 | M151: 65.67 | N151: 2
A152: 150 | B152: 刘慧玲 | D152: 专业技术人员一 | G152: 60.5 | H152: 59.5 | I152: 120 | J152: 20.00 | K152: 81.02 | L152: 40.51 | M152: 60.51 | N152: 3
A153: 151 | B153: 韦亚莉 | D153: 专业技术人员二 | E153: 1450400546 | F153: 1 | G153: 82.5 | H153: 101.5 | I153: 184 | J153: 30.67 | K153: 78.42 | L153: 39.21 | M153: 69.88 | N153: 1
A154: 152 | B154: 吴雪敏 | D154: 专业技术人员二 | G154: 73 | H154: 83.5 | I154: 156.5 | J154: 26.08 | K154: 75.39 | L154: 37.70 | M154: 63.78 | N154: 2
A155: 153 | B155: 陈春海 | D155: 专业技术人员二 | G155: 70 | H155: 83 | I155: 153 | J155: 25.50 | K155: 70.00 | L155: 35.00 | M155: 60.50 | N155: 3
A156: 154 | B156: 黄琳清 | C156: 蒙山县森林资源管理中心 | D156: 专业技术人员 | E156: 1450400547 | F156: 1 | G156: 74.5 | H156: 87 | I156: 161.5 | J156: 26.92 | K156: 77.86 | L156: 38.93 | M156: 65.85 | N156: 1
A157: 155 | B157: 覃展鸿 | D157: 专业技术人员 | G157: 73 | H157: 84 | I157: 157 | J157: 26.17 | K157: 76.02 | L157: 38.01 | M157: 64.18 | N157: 2
A158: 156 | B158: 吴泓键 | D158: 专业技术人员 | G158: 67.5 | H158: 61.5 | I158: 129 | J158: 21.50 | K158: 79.86 | L158: 39.93 | M158: 61.43 | N158: 3
A159: 157 | B159: 唐春霞 | C159: 蒙山县林业技术推广站 | D159: 专业技术人员 | E159: 1450400548 | F159: 1 | G159: 78.5 | H159: 102 | I159: 180.5 | J159: 30.08 | K159: 79.20 | L159: 39.60 | M159: 69.68 | N159: 1
A160: 158 | B160: 谭正彬 | D160: 专业技术人员 | G160: 66 | H160: 65 | I160: 131 | J160: 21.83 | K160: 83.80 | L160: 41.90 | M160: 63.73 | N160: 2
A161: 159 | B161: 韦楗洪 | D161: 专业技术人员 | G161: 64.5 | H161: 84.5 | I161: 149 | J161: 24.83 | K161: 75.98 | L161: 37.99 | M161: 62.82 | N161: 3
A162: 160 | B162: 陈露露 | C162: 蒙山县生态保护修复中心 | D162: 专业技术人员 | E162: 1450400549 | F162: 1 | G162: 83.5 | H162: 79.5 | I162: 163 | J162: 27.17 | K162: 85.20 | L162: 42.60 | M162: 69.77 | N162: 1
A163: 161 | B163: 韦静 | D163: 专业技术人员 | G163: 62.5 | H163: 84.5 | I163: 147 | J163: 24.50 | K163: 81.22 | L163: 40.61 | M163: 65.11 | N163: 2
A164: 162 | B164: 潘陈晓 | D164: 专业技术人员 | G164: 64 | H164: 87.5 | I164: 151.5 | J164: 25.25 | K164: 66.08 | L164: 33.04 | M164: 58.29 | N164: 3
A165: 163 | B165: 黄莹 | C165: 蒙山县医疗保障事业管理中心 | D165: 专业技术人员一 | E165: 1450400550 | F165: 1 | G165: 86.5 | H165: 88.6 | I165: 175.1 | J165: 29.18 | K165: 80.74 | L165: 40.37 | M165: 69.55 | N165: 1
A166: 164 | B166: 罗双凤 | D166: 专业技术人员一 | G166: 82 | H166: 80 | I166: 162 | J166: 27.00 | K166: 74.84 | L166: 37.42 | M166: 64.42 | N166: 2
A167: 165 | B167: 周韦敏 | D167: 专业技术人员一 | G167: 80 | H167: 65.9 | I167: 145.9 | J167: 24.32 | K167: 77.58 | L167: 38.79 | M167: 63.11 | N167: 3
A168: 166 | B168: 郑华浩 | D168: 专业技术人员二 | E168: 1450400551 | F168: 1 | G168: 98.5 | H168: 116.5 | I168: 215 | J168: 35.83 | K168: 85.94 | L168: 42.97 | M168: 78.80 | N168: 1
A169: 167 | B169: 彭晓连 | D169: 专业技术人员二 | G169: 89.5 | H169: 92 | I169: 181.5 | J169: 30.25 | K169: 79.46 | L169: 39.73 | M169: 69.98 | N169: 2
A170: 168 | B170: 韦睿 | D170: 专业技术人员二 | G170: 95 | H170: 87.5 | I170: 182.5 | J170: 30.42 | K170: 72.00 | L170: 36.00 | M170: 66.42 | N170: 3
A171: 169 | B171: 杨洁 | C171: 蒙山县水利项目管理中心 | D171: 专业技术人员一 | E171: 1450400552 | F171: 1 | G171: 65 | H171: 90.5 | I171: 155.5 | J171: 25.92 | K171: 81.08 | L171: 40.54 | M171: 66.46 | N171: 1
A172: 170 | B172: 莫姗瑾 | D172: 专业技术人员一 | G172: 78.5 | H172: 77 | I172: 155.5 | J172: 25.92 | K172: 80.32 | L172: 40.16 | M172: 66.08 | N172: 2
A173: 171 | B173: 吴文彦 | D173: 专业技术人员一 | G173: 66.5 | H173: 85.5 | I173: 152 | J173: 25.33 | K173: 80.62 | L173: 40.31 | M173: 65.64 | N173: 3
A174: 172 | B174: 杨仕婷 | D174: 专业技术人员二 | E174: 1450400553 | F174: 1 | G174: 76 | H174: 80.5 | I174: 156.5 | J174: 26.08 | K174: 81.46 | L174: 40.73 | M174: 66.81 | N174: 1
A175: 173 | B175: 黄德佳 | D175: 专业技术人员二 | G175: 66 | H175: 83.5 | I175: 149.5 | J175: 24.92 | K175: 77.90 | L175: 38.95 | M175: 63.87 | N175: 2
A176: 174 | B176: 李青强 | D176: 专业技术人员二 | G176: 51 | H176: 81.5 | I176: 132.5 | J176: 22.08 | K176: 75.90 | L176: 37.95 | M176: 60.03 | N176: 3
A177: 175 | B177: 李略维 | C177: 蒙山县蒙山镇乡村建设综合保障中心 | D177: 专业技术人员 | E177: 1450400554 | F177: 1 | G177: 80.5 | H177: 86 | I177: 166.5 | J177: 27.75 | K177: 81.02 | L177: 40.51 | M177: 68.26 | N177: 1
A178: 176 | B178: 莫研 | D178: 专业技术人员 | G178: 68 | H178: 71 | I178: 139 | J178: 23.17 | K178: 81.46 | L178: 40.73 | M178: 63.90 | N178: 2
A179: 177 | B179: 容凤莲 | D179: 专业技术人员 | G179: 61 | H179: 83 | I179: 144 | J179: 24.00 | K179: 74.14 | L179: 37.07 | M179: 61.07 | N179: 3
A180: 178 | B180: 贤章静 | C180: 蒙山县西河镇综合行政执法队 | D180: 专业技术人员 | E180: 1450400555 | F180: 1 | G180: 73.5 | H180: 99 | I180: 172.5 | J180: 28.75 | K180: 83.04 | L180: 41.52 | M180: 70.27 | N180: 1
A181: 179 | B181: 张剑邦 | D181: 专业技术人员 | G181: 73.5 | H181: 70 | I181: 143.5 | J181: 23.92 | K181: 74.62 | L181: 37.31 | M181: 61.23 | N181: 2
A182: 180 | B182: 陆顺 | D182: 专业技术人员 | G182: 71 | H182: 78.5 | I182: 149.5 | J182: 24.92 | K182: 65.92 | L182: 32.96 | M182: 57.88 | N182: 3
A183: 181 | B183: 黄强 | C183: 蒙山县西河镇便民服务中心 | D183: 管理人员 | E183: 1450400556 | F183: 1 | G183: 89.5 | H183: 92 | I183: 181.5 | J183: 30.25 | K183: 81.72 | L183: 40.86 | M183: 71.11 | N183: 1
A184: 182 | B184: 黄永果 | D184: 管理人员 | G184: 87 | H184: 85 | I184: 172 | J184: 28.67 | K184: 76.56 | L184: 38.28 | M184: 66.95 | N184: 2
A185: 183 | B185: 何斯弦 | D185: 管理人员 | G185: 81.5 | H185: 72 | I185: 153.5 | J185: 25.58 | K185: 73.68 | L185: 36.84 | M185: 62.42 | N185: 3
A186: 184 | B186: 廖世彬 | C186: 蒙山县文圩镇综合行政执法队 | D186: 专业技术人员一 | E186: 1450400557 | F186: 1 | G186: 82.5 | H186: 89 | I186: 171.5 | J186: 28.58 | K186: 79.42 | L186: 39.71 | M186: 68.29 | N186: 1
A187: 185 | B187: 左道龙 | D187: 专业技术人员一 | G187: 79.5 | H187: 82 | I187: 161.5 | J187: 26.92 | K187: 75.62 | L187: 37.81 | M187: 64.73 | N187: 2
A188: 186 | B188: 胡丽华 | D188: 专业技术人员一 | G188: 65 | H188: 85 | I188: 150 | J188: 25.00 | K188: 76.78 | L188: 38.39 | M188: 63.39 | N188: 3
A189: 187 | B189: 郑少冠 | D189: 专业技术人员二 | E189: 1450400558 | F189: 1 | G189: 92 | H189: 91 | I189: 183 | J189: 30.50 | K189: 75.64 | L189: 37.82 | M189: 68.32 | N189: 1
A190: 188 | B190: 冯玉婷 | D190: 专业技术人员二 | G190: 80.5 | H190: 88 | I190: 168.5 | J190: 28.08 | K190: 78.76 | L190: 39.38 | M190: 67.46 | N190: 2
A191: 189 | B191: 梁栩晔 | D191: 专业技术人员二 | G191: 86 | H191: 86 | I191: 172 | J191: 28.67 | K191: 69.70 | L191: 34.85 | M191: 63.52 | N191: 3
A192: 190 | B192: 陀桂莎 | C192: 蒙山县黄村镇乡村建设综合保障中心 | D192: 专业技术人员 | E192: 1450400559 | F192: 1 | G192: 78 | H192: 97 | I192: 175 | J192: 29.17 | K192: 78.24 | L192: 39.12 | M192: 68.29 | N192: 1
A193: 191 | B193: 黄梓钊 | D193: 专业技术人员 | E193: 1450400559 | G193: 74 | H193: 86 | I193: 160 | J193: 26.67 | K193: 79.06 | L193: 39.53 | M193: 66.20 | N193: 2
A194: 192 | B194: 黎娜 | D194: 专业技术人员 | E194: 1450400559 | G194: 78.5 | H194: 85.5 | I194: 164 | J194: 27.33 | K194: 74.98 | L194: 37.49 | M194: 64.82 | N194: 3
A195: 193 | B195: 周媛 | C195: 蒙山县夏宜瑶族乡综合行政执法队 | D195: 专业技术人员一 | E195: 1450400561 | F195: 1 | G195: 71.5 | H195: 75.5 | I195: 147 | J195: =I195/3/2 -> 24.50 | K195: 82.48 | L195: 41.24 | M195: =J195+L195 -> 65.74 | N195: 1
A196: 194 | B196: 胡达明 | D196: 专业技术人员一 | E196: 1450400561 | G196: 55 | H196: 66.5 | I196: 121.5 | J196: 20.25 | K196: 80.82 | L196: 40.41 | M196: 60.66 | N196: 2
A197: 195 | B197: 陈科升 | D197: 专业技术人员一 | E197: 1450400561 | G197: 60.5 | H197: 65 | I197: 125.5 | J197: 20.92 | K197: 79.22 | L197: 39.61 | M197: 60.53 | N197: 3
A198: 196 | B198: 陈尤猷 | D198: 专业技术人员二 | E198: 1450400562 | F198: 1 | G198: 77.5 | H198: 95 | I198: 172.5 | J198: 28.75 | K198: 81.64 | L198: 40.82 | M198: 69.57 | N198: 1
A199: 197 | B199: 邹年菲 | D199: 专业技术人员二 | E199: 1450400562 | G199: 73.5 | H199: 94 | I199: 167.5 | J199: 27.92 | K199: 78.36 | L199: 39.18 | M199: 67.10 | N199: 2
A200: 198 | B200: 李冬东 | D200: 专业技术人员二 | E200: 1450400562 | G200: 94.5 | H200: 76 | I200: 170.5 | J200: 28.42 | K200: 77.26 | L200: 38.63 | M200: 67.05 | N200: 3
... 56 more rows
